bitfinex/quotes_BTCUSD_20251124
["timestamp","ask_amount","ask_price","bid_price","bid_amount"]
[1763964275714,0.323,87458.0,87451.0,0.00889627]
[1763964276047,0.323,87458.0,87451.0,0.00928873]
[1763964276803,0.323,87458.0,87451.0,0.01028873]
[1763964279213,0.02124363,87457.0,87451.0,0.01028873]
[1763964279417,0.02124363,87456.0,87451.0,0.01028873]
[1763964279616,0.02124363,87455.0,87451.0,0.01028873]
[1763964279821,0.02124363,87454.0,87451.0,0.01028873]
[1763964280133,0.02124363,87454.0,87451.0,0.00039246]
[1763964280334,0.02124363,87454.0,87451.0,0.00139246]
[1763964280505,0.02124363,87454.0,87453.0,0.00097398]
[1763964281003,0.02124363,87454.0,87453.0,0.04178398]
[1763964282148,0.02124363,87454.0,87453.0,0.00097398]
[1763964282318,0.02125635,87454.0,87453.0,0.00097398]
[1763964282520,0.02125635,87454.0,87453.0,0.00197398]
[1763964282724,0.02125635,87454.0,87453.0,0.01783398]
[1763964283126,0.02125497,87454.0,87453.0,0.01783398]
[1763964283491,0.323,87456.0,87453.0,0.01783398]
[1763964283691,0.02125836,87455.0,87453.0,0.01586]
[1763964283863,0.02125836,87455.0,87451.0,0.01250246]
[1763964283864,0.323,87458.0,87454.0,0.02495]
[1763964284065,0.323,87458.0,87457.0,0.01586]
[1763964284385,0.34425878,87458.0,87457.0,0.01586]
[1763964284580,0.34425878,87458.0,87453.0,0.002]
[1763964284581,0.02125878,87458.0,87453.0,0.002]
[1763964284722,0.42651431,87454.0,87453.0,0.001]
[1763964285265,0.323,87453.0,87451.0,0.01250246]
[1763964286302,0.10351431,87454.0,87451.0,0.00039246]
[1763964286507,0.10351431,87454.0,87453.0,0.001]
[1763964287219,0.10351431,87454.0,87451.0,0.00039246]
[1763964287980,0.02127311,87453.0,87451.0,0.00039246]
[1763964288216,0.02127311,87452.0,87451.0,0.00039246]
[1763964288383,2.323,87452.0,87451.0,0.00039246]
[1763964288721,2.57296999,87452.0,87451.0,0.00139246]
[1763964288921,2.35490882,87452.0,87451.0,0.00139246]
[1763964289217,2.35490882,87452.0,87451.0,0.00242898]
[1763964289397,2.35490882,87452.0,87451.0,0.00142898]
[1763964292232,2.34427311,87452.0,87451.0,0.00142898]
[1763964292597,2.19570867,87452.0,87451.0,0.00142898]
[1763964293131,2.18507295,87452.0,87451.0,0.00142898]
[1763964294741,2.19571087,87452.0,87451.0,0.00142898]
[1763964295792,2.18507295,87452.0,87451.0,0.00142898]
[1763964296700,2.19571061,87452.0,87451.0,0.00142898]
[1763964297115,0.323,87449.0,87432.0,0.01156]
[1763964297341,0.323,87437.0,87432.0,0.01156]
[1763964298610,0.323,87437.0,87420.0,0.01156]
[1763964298847,0.323,87429.0,87420.0,0.01156]
[1763964299218,0.323,87429.0,87420.0,0.03473]
[1763964299834,0.323,87429.0,87420.0,0.01156]
[1763964300003,0.323,87429.0,87428.0,0.01156]
[1763964300400,0.323,87429.0,87428.0,0.0268]
[1763964300601,0.323,87437.0,87428.0,0.01156]
[1763964300811,0.323,87437.0,87421.0,0.02317]
[1763964301862,0.10351431,87438.0,87421.0,0.02317]
[1763964301863,0.323,87430.0,87421.0,0.02317]
[1763964302065,0.323,87430.0,87428.0,0.001]
[1763964302283,0.323,87430.0,87429.0,0.0268]
[1763964302431,0.6939994,87438.0,87429.0,0.04997]
[1763964303281,0.6939994,87438.0,87430.0,0.02317]
[1763964303681,0.6939994,87438.0,87429.0,0.01156]
[1763964303879,0.6939994,87438.0,87437.0,0.00043777]
[1763964304386,0.6992194,87438.0,87437.0,0.00043777]
[1763964304538,0.43173431,87438.0,87437.0,0.00043777]
[1763964304739,0.42651431,87438.0,87437.0,0.00043777]
[1763964305337,0.42651431,87438.0,87437.0,0.00143777]
[1763964306163,0.323,87438.0,87437.0,0.00143777]
[1763964306367,0.323,87438.0,87437.0,0.04317777]
[1763964306572,0.323,87438.0,87437.0,0.00143777]
[1763964306767,0.32822,87438.0,87437.0,0.00143777]
[1763964307746,0.323,87438.0,87437.0,0.00143777]
[1763964308147,0.323,87438.0,87437.0,0.01786777]
[1763964308590,0.323,87438.0,87437.0,0.04317777]
[1763964308822,0.323,87438.0,87437.0,0.01786777]
[1763964309054,0.323,87438.0,87437.0,0.00143777]
[1763964309795,0.32822,87438.0,87437.0,0.00143777]
[1763964310631,0.32822,87438.0,87437.0,0.00043777]
[1763964311011,0.323,87438.0,87437.0,0.00143777]
[1763964311345,0.323,87438.0,87437.0,0.04417777]
[1763964311909,0.59048509,87447.0,87437.0,0.04317777]
[1763964312111,2.0,87445.0,87437.0,0.04374]
[1763964312312,0.02128023,87444.0,87437.0,0.04374]
[1763964312526,0.02128023,87443.0,87437.0,0.04374]
[1763964312724,2.59048509,87447.0,87446.0,0.02836]
[1763964312922,2.59048509,87447.0,87438.0,0.01193]
[1763964312923,2.02128229,87447.0,87438.0,0.01193]
[1763964313247,0.10351431,87440.0,87437.0,0.001]
[1763964313641,0.10351431,87440.0,87433.0,0.01193]
[1763964313888,0.10351431,87440.0,87426.0,0.01193]
[1763964314094,0.10351431,87440.0,87417.0,0.01193]
[1763964314095,0.323,87437.0,87417.0,0.01193]
[1763964314361,0.323,87429.0,87417.0,0.01193]
[1763964314715,0.323,87425.0,87417.0,0.01193]
[1763964315109,0.323,87425.0,87420.0,0.01256]
[1763964315445,0.323,87425.0,87408.0,0.01193]
[1763964315446,0.00522,87421.0,87408.0,0.01193]
[1763964315767,0.33344,87411.0,87399.0,0.01193]
[1763964316063,2.35470911,87411.0,87399.0,0.01193]
[1763964316291,2.33866,87411.0,87399.0,0.01193]
[1763964316518,2.35469109,87411.0,87397.0,0.01193]
[1763964316671,2.36030338,87411.0,87397.0,0.01193]
[1763964317073,2.49494972,87411.0,87390.0,0.01193]
[1763964317278,2.44534006,87411.0,87390.0,0.01193]
[1763964317846,2.44534006,87411.0,87410.0,0.00148244]
[1763964319018,2.67414421,87411.0,87410.0,0.00148244]
[1763964319184,2.44534006,87411.0,87410.0,0.00148244]
[1763964319582,2.44012006,87411.0,87410.0,0.00148244]
[1763964319954,2.44534006,87411.0,87410.0,0.00148244]
[1763964320366,2.36030338,87411.0,87410.0,0.00148244]
[1763964321205,2.58910753,87411.0,87410.0,0.00148244]
[1763964323327,2.61441753,87411.0,87410.0,0.00148244]
[1763964324290,2.67461015,87411.0,87410.0,0.00148244]
[1763964324627,2.68540092,87411.0,87410.0,0.00148244]
[1763964325234,2.67461015,87411.0,87410.0,0.00148244]
[1763964325767,2.60142952,87405.0,87370.0,0.0002]
[1763964325921,2.63848357,87405.0,87370.0,0.0002]
[1763964326288,0.323,87389.0,87370.0,0.0002]
[1763964326498,0.01144256,87393.0,87370.0,0.0002]
[1763964326499,0.323,87373.0,87370.0,0.0002]
[1763964327260,0.33919032,87373.0,87370.0,0.0002]
[1763964327654,0.33958237,87373.0,87370.0,0.0002]
[1763964328789,0.32822,87371.0,87370.0,0.0002]
[1763964328953,2.34933001,87371.0,87370.0,0.0012]
[1763964329150,2.35455001,87371.0,87370.0,0.0002]
[1763964329583,2.35455001,87371.0,87370.0,0.0012]
[1763964329787,2.35455001,87371.0,87370.0,0.0002]
[1763964329944,2.36509792,87371.0,87370.0,0.0012]
[1763964330154,2.51822189,87371.0,87370.0,0.0022]
[1763964330368,2.51822189,87371.0,87370.0,0.0002]
[1763964330772,0.0114461,87366.0,87330.0,0.01193]
[1763964331085,2.5789751,87361.0,87330.0,0.01193]
[1763964331443,2.36169792,87361.0,87352.0,0.01193]
[1763964331567,2.35115001,87361.0,87352.0,0.01193]
[1763964331781,2.39262331,87361.0,87360.0,0.00176521]
[1763964332439,2.38558331,87361.0,87360.0,0.00176521]
[1763964332647,2.40314813,87361.0,87360.0,0.00176521]
[1763964333059,2.39610813,87361.0,87360.0,0.00276521]
[1763964333348,2.34411001,87361.0,87360.0,0.00176521]
[1763964333700,2.34411001,87361.0,87360.0,0.00276521]
[1763964333899,2.34411001,87361.0,87360.0,0.00176521]
[1763964334902,2.33004,87361.0,87360.0,0.00176521]
[1763964335100,2.35106346,87361.0,87360.0,0.00276521]
[1763964335304,2.35810346,87361.0,87360.0,0.00276521]
[1763964335509,2.35810346,87361.0,87360.0,0.00176521]
[1763964335742,2.35810346,87361.0,87360.0,0.00276521]
[1763964335947,2.35106346,87361.0,87360.0,0.00276521]
[1763964336683,2.35810346,87361.0,87360.0,0.00276521]
[1763964336882,2.68614116,87361.0,87360.0,0.00276521]
[1763964337097,2.59754737,87361.0,87360.0,0.00276521]
[1763964337879,2.36861227,87361.0,87360.0,0.00276521]
[1763964338083,2.36861227,87361.0,87360.0,0.00176521]
[1763964338282,2.59754737,87361.0,87360.0,0.00176521]
[1763964338513,2.36861227,87361.0,87360.0,0.00176521]
[1763964339345,2.48383358,87361.0,87360.0,0.00176521]
[1763964339750,2.36861227,87361.0,87360.0,0.00176521]
[1763964340161,2.59754737,87361.0,87360.0,0.00176521]
[1763964342706,2.64715703,87361.0,87360.0,0.00176521]
[1763964343098,0.323,87346.0,87324.0,0.01212]
[1763964343313,0.323,87327.0,87324.0,0.01212]
[1763964343550,0.02102346,87326.0,87324.0,0.01212]
[1763964343782,0.02102346,87325.0,87320.0,0.0002]
[1763964343991,0.02102346,87324.0,87320.0,0.0002]
[1763964344237,0.02102346,87323.0,87321.0,0.01212]
[1763964344415,0.02102346,87322.0,87321.0,0.01212]
[1763964345261,0.02102346,87322.0,87320.0,0.0012]
[1763964345262,0.02806346,87322.0,87320.0,0.0012]
[1763964345617,0.00039181,87324.0,87320.0,0.0012]
[1763964345618,2.36159471,87321.0,87320.0,0.0002]
[1763964346388,2.35455471,87321.0,87320.0,0.0002]
[1763964346604,2.35455471,87321.0,87320.0,0.04306]
[1763964347023,2.35455471,87321.0,87320.0,0.0176]
[1763964347222,2.36159471,87321.0,87320.0,0.0002]
[1763964347426,0.34285589,87321.0,87320.0,0.0186]
[1763964347630,0.34285589,87321.0,87320.0,0.0176]
[1763964347631,0.03155471,87321.0,87320.0,0.0176]
[1763964347874,0.02102346,87321.0,87320.0,0.0176]
[1763964348195,0.02102346,87321.0,87320.0,0.04050426]
[1763964348602,0.02102346,87321.0,87320.0,0.0186]
[1763964348806,0.02102346,87321.0,87320.0,0.0012]
[1763964348956,0.02102346,87321.0,87320.0,0.0002]
[1763964349158,0.02102346,87321.0,87320.0,0.0022]
[1763964349520,0.02102346,87321.0,87320.0,0.0042]
[1763964349918,0.02102346,87321.0,87320.0,0.0022]
[1763964350131,0.06297346,87321.0,87320.0,0.0022]
[1763964350372,0.06297346,87321.0,87290.0,0.00999999]
[1763964350373,2.0,87301.0,87290.0,0.00999999]
[1763964350566,0.0159,87291.0,87270.0,0.0002]
[1763964350776,2.0159,87287.0,87270.0,0.0002]
[1763964350989,2.3967451,87287.0,87270.0,0.0002]
[1763964351211,2.43435125,87287.0,87270.0,0.0002]
[1763964351466,0.323,87286.0,87270.0,0.0002]
[1763964351687,0.01751,87271.0,87270.0,0.0002]
[1763964351911,0.08674125,87271.0,87270.0,0.0002]
[1763964352127,0.43596125,87271.0,87270.0,0.0002]
[1763964352947,0.45229205,87271.0,87270.0,0.0002]
[1763964353362,0.4156859,87271.0,87270.0,0.0002]
[1763964354117,2.4166859,87271.0,87270.0,0.0002]
[1763964354349,2.46629556,87271.0,87270.0,0.0030211]
[1763964354556,2.51607925,87271.0,87270.0,0.0030211]
[1763964354749,2.62393954,87271.0,87270.0,0.0030211]
[1763964355072,2.47935535,87271.0,87270.0,0.0030211]
[1763964355302,2.47835535,87271.0,87270.0,0.0030211]
[1763964355645,2.47935535,87271.0,87270.0,0.0030211]
[1763964357136,2.4166859,87271.0,87270.0,0.0030211]
[1763964357384,2.4266859,87271.0,87270.0,0.0030211]
[1763964359475,2.4166859,87271.0,87270.0,0.0030211]
[1763964359624,2.46629556,87271.0,87270.0,0.0030211]
[1763964360632,2.46629556,87271.0,87198.0,0.01146815]
[1763964360633,2.0,87256.0,87191.0,0.10351431]
[1763964360839,2.0,87256.0,87192.0,0.02293788]
[1763964360840,0.323,87219.0,87192.0,0.02293788]
[1763964361044,0.323,87219.0,87192.0,0.05741994]
[1763964361531,0.323,87219.0,87192.0,0.02293788]
[1763964361706,0.323,87215.0,87188.0,0.0344821]
[1763964361910,0.323,87209.0,87180.0,0.1137143]
[1763964362285,0.323,87209.0,87182.0,0.10351431]
[1763964362486,0.323,87209.0,87183.0,0.02294025]
[1763964362717,0.86962807,87193.0,87192.0,0.001]
[1763964362913,0.34051,87193.0,87192.0,0.001]
[1763964363122,0.34051,87193.0,87119.0,0.00728]
[1763964363123,0.01198,87165.0,87119.0,0.00728]
[1763964363331,0.01198,87165.0,87078.0,0.02998556]
[1763964363332,0.01198,87139.0,87133.0,0.03450435]
[1763964363534,0.00999999,87140.0,87100.0,0.00999999]
[1763964363857,0.00999999,87140.0,87080.0,0.00999999]
[1763964363858,0.323,87129.0,87101.0,0.02197999]
[1763964364133,0.323,87129.0,87090.0,0.00999999]
[1763964364357,0.00999999,87120.0,87090.0,0.00999999]
[1763964364562,0.00999999,87120.0,87088.0,0.03452093]
[1763964364681,0.00999999,87120.0,87100.0,0.001]
[1763964364882,0.00999999,87120.0,87088.0,0.03452093]
[1763964365131,0.00999999,87120.0,87090.0,0.00999999]
[1763964365331,0.01296,87119.0,87090.0,0.001]
[1763964365539,0.00999999,87120.0,87090.0,0.001]
[1763964365748,0.00999999,87100.0,87090.0,0.001]
[1763964365921,0.00999999,87100.0,87083.0,0.01296]
[1763964366126,0.00999999,87110.0,87099.0,0.00537339]
[1763964366325,0.00999999,87110.0,87088.0,0.001]
[1763964366326,0.00999999,87110.0,87090.0,0.01099999]
[1763964366584,0.323,87119.0,87109.0,0.11410982]
[1763964366797,0.323,87119.0,87109.0,0.10905125]
[1763964367001,0.00039036,87119.0,87110.0,0.02295947]
[1763964367283,0.00039036,87119.0,87109.0,0.10905125]
[1763964367284,0.00039036,87119.0,87111.0,0.02295921]
[1763964367459,0.00999999,87150.0,87110.0,0.90258753]
[1763964367787,0.87962806,87130.0,87110.0,0.00039036]
[1763964367945,0.87962806,87120.0,87110.0,0.00039036]
[1763964368286,0.87962806,87120.0,87110.0,0.00239036]
[1763964368287,0.00999999,87120.0,87110.0,0.00239036]
[1763964368443,0.323,87119.0,87110.0,0.00239036]
[1763964368865,0.33596,87119.0,87110.0,0.00239036]
[1763964369104,0.01607,87111.0,87110.0,0.00239036]
[1763964369488,2.36445,87111.0,87110.0,0.00139036]
[1763964369684,0.323,87111.0,87110.0,0.00139036]
[1763964370289,0.324,87111.0,87110.0,0.00139036]
[1763964370548,0.323,87111.0,87110.0,0.00039036]
[1763964370947,0.002,87111.0,87110.0,0.00039036]
[1763964371168,0.001,87111.0,87110.0,0.00039036]
[1763964371369,0.00999999,87120.0,87110.0,0.00039036]
[1763964371599,0.00999999,87130.0,87111.0,0.10905125]
[1763964371779,0.00999999,87140.0,87125.0,0.10905125]
[1763964372004,0.00999999,87140.0,87126.0,0.02295526]
[1763964372393,0.87962806,87140.0,87126.0,0.02295526]
[1763964372593,0.00999999,87140.0,87126.0,0.02295526]
[1763964372774,0.00999999,87140.0,87126.0,0.10905125]
[1763964372973,0.87962806,87140.0,87126.0,0.10905125]
[1763964373225,0.87962806,87140.0,87126.0,0.11105125]
[1763964373377,0.01296,87139.0,87126.0,0.002]
[1763964373577,0.86962807,87136.0,87126.0,0.002]
[1763964373776,0.00999999,87140.0,87126.0,0.002]
[1763964373976,0.323,87139.0,87126.0,0.001]
[1763964374363,0.36926,87139.0,87126.0,0.001]
[1763964374719,0.00999999,87130.0,87111.0,0.10905125]
[1763964374919,0.323,87129.0,87111.0,0.10905125]
[1763964375864,0.01296,87131.0,87126.0,0.001]
[1763964376026,0.323,87127.0,87110.0,0.00039036]
[1763964376227,0.00999999,87120.0,87110.0,0.00039036]
[1763964376429,0.00999999,87120.0,87111.0,0.001]
[1763964376694,0.00999999,87120.0,87110.0,0.00039036]
[1763964377437,0.00999999,87120.0,87111.0,0.10905125]
[1763964377684,0.02295222,87128.0,87119.0,0.00474383]
[1763964377880,0.00999999,87130.0,87119.0,0.0229571]
[1763964378094,0.00999999,87130.0,87111.0,0.10905125]
[1763964378095,0.01801066,87148.0,87126.0,0.10905125]
[1763964378294,0.87962806,87140.0,87129.0,0.00442916]
[1763964378540,0.02295222,87139.0,87126.0,0.10905125]
[1763964378709,0.00999999,87140.0,87126.0,0.10905125]
[1763964378911,0.00999999,87140.0,87127.0,0.10905125]
[1763964379281,0.01801066,87148.0,87127.0,0.10905125]
[1763964380434,0.01801066,87148.0,87127.0,0.11005125]
[1763964380598,0.00999999,87160.0,87145.0,0.10905125]
[1763964380806,0.86962807,87150.0,87127.0,0.11005125]
[1763964381425,0.86962807,87150.0,87141.0,0.10905125]
[1763964381791,0.86962807,87150.0,87141.0,0.10916837]
[1763964382135,0.69507149,87150.0,87141.0,0.10916837]
[1763964382491,0.02295222,87149.0,87141.0,0.00011712]
[1763964383031,0.34595222,87149.0,87141.0,0.00111712]
[1763964383205,0.323,87149.0,87141.0,0.00211712]
[1763964383408,0.02068914,87148.0,87141.0,0.00211712]
[1763964383608,0.02068914,87148.0,87141.0,0.00011712]
[1763964383808,0.02200526,87148.0,87141.0,0.00011712]
[1763964384874,0.33299999,87150.0,87141.0,0.00111712]
[1763964385219,0.01607,87142.0,87141.0,0.00011712]
[1763964385367,0.03691631,87142.0,87141.0,0.00111712]
[1763964385778,0.03691631,87142.0,87141.0,0.00011712]
[1763964386801,0.01707,87142.0,87141.0,0.00011712]
[1763964387304,0.04345,87142.0,87141.0,0.00011712]
[1763964388175,0.002,87142.0,87126.0,0.01728]
[1763964388391,0.323,87133.0,87124.0,0.00860625]
[1763964388575,0.323,87133.0,87125.0,0.01724]
[1763964388777,0.00999999,87140.0,87132.0,0.01689]
[1763964388980,0.00011708,87142.0,87139.0,0.01689]
[1763964389196,0.00111708,87142.0,87141.0,0.01689]
[1763964389396,0.00111708,87142.0,87141.0,0.02094166]
[1763964389601,0.00111708,87142.0,87141.0,0.03818166]
[1763964389602,0.00011708,87142.0,87141.0,0.03818166]
[1763964391387,0.00011708,87142.0,87141.0,0.04018166]
[1763964392016,0.00011708,87142.0,87141.0,0.04118166]
[1763964394093,0.01067277,87142.0,87141.0,0.00705166]
[1763964394892,0.01067277,87142.0,87141.0,0.00605166]
[1763964395095,0.03177997,87142.0,87141.0,0.00405166]
[1763964395294,0.03177997,87142.0,87141.0,0.00505166]
[1763964395564,0.03177997,87142.0,87141.0,0.00605166]
[1763964395738,0.03177997,87142.0,87141.0,0.00505166]
[1763964396143,0.03177997,87142.0,87141.0,0.00605166]
[1763964396345,0.07526997,87142.0,87141.0,0.00605166]
[1763964396504,0.07526997,87142.0,87141.0,0.00505166]
[1763964396706,2.39826997,87142.0,87141.0,0.00505166]
[1763964397115,2.39826997,87142.0,87103.0,0.01871]
[1763964397116,0.323,87139.0,87103.0,0.01871]
[1763964397315,0.323,87117.0,87104.0,0.02296105]
[1763964397513,0.01055569,87116.0,87104.0,0.02296105]
[1763964397743,0.323,87117.0,87116.0,0.01695]
[1763964397949,0.87962806,87130.0,87116.0,0.01695]
[1763964397950,0.323,87129.0,87116.0,0.01695]
[1763964398304,0.323,87125.0,87116.0,0.01695]
[1763964398416,0.03165171,87124.0,87116.0,0.01695]
[1763964398627,0.03165171,87123.0,87116.0,0.01695]
[1763964398883,0.03165171,87122.0,87116.0,0.01695]
[1763964399087,0.03165171,87121.0,87116.0,0.01695]
[1763964399228,0.00999999,87130.0,87117.0,0.01871]
[1763964399229,0.01055372,87120.0,87117.0,0.01871]
[1763964399443,0.00999999,87130.0,87129.0,0.01007]
[1763964399648,0.0205543,87130.0,87129.0,0.01007]
[1763964399844,0.03166293,87130.0,87129.0,0.01007]
[1763964402135,0.03166293,87130.0,87129.0,0.02702]
[1763964402536,0.03166293,87130.0,87129.0,0.04573]
[1763964403327,0.00011708,87142.0,87129.0,0.04573]
[1763964403558,0.00011708,87142.0,87141.0,0.01695]
[1763964403734,0.01067854,87142.0,87141.0,0.01695]
[1763964403937,0.00011708,87142.0,87141.0,0.03566]
[1763964404774,0.01800963,87164.0,87141.0,0.03566]
[1763964404989,0.01800963,87164.0,87163.0,0.02482]
[1763964405361,0.01800963,87164.0,87163.0,0.04239]
[1763964407350,0.01800963,87164.0,87163.0,0.04439]
[1763964407351,0.01153963,87164.0,87163.0,0.04439]
[1763964407695,0.323,87189.0,87163.0,0.04539]
[1763964407901,0.03165403,87188.0,87164.0,0.01757]
[1763964408130,0.03165403,87187.0,87164.0,0.01757]
[1763964408504,0.01055134,87186.0,87164.0,0.01757]
[1763964408673,0.01055134,87185.0,87176.0,0.10905125]
[1763964408851,0.32311788,87189.0,87176.0,0.10905125]
[1763964408852,0.32311788,87189.0,87188.0,0.01732]
[1763964409049,0.35475357,87189.0,87188.0,0.01732]
[1763964409253,0.03175357,87189.0,87188.0,0.03489]
[1763964409422,0.03175357,87189.0,87188.0,0.01732]
[1763964409625,0.03175357,87189.0,87178.0,0.01757]
[1763964409876,0.01054523,87188.0,87178.0,0.01757]
[1763964410121,0.00999999,87180.0,87163.0,0.0075]
[1763964410381,0.00999999,87170.0,87163.0,0.0075]
[1763964410579,0.00999999,87170.0,87164.0,0.001]
[1763964410725,0.01053514,87169.0,87164.0,0.001]
[1763964410924,0.00999999,87170.0,87163.0,0.0075]
[1763964411130,0.01053511,87169.0,87163.0,0.0075]
[1763964411347,0.00999999,87170.0,87163.0,0.0075]
[1763964411626,0.01053382,87169.0,87163.0,0.0075]
[1763964411831,0.31270816,87172.0,87163.0,0.0075]
[1763964413511,0.10905125,87180.0,87163.0,0.0075]
[1763964413710,0.86962807,87173.0,87163.0,0.0075]
[1763964413846,0.323,87172.0,87163.0,0.0075]
[1763964414512,0.323,87172.0,87171.0,0.01732]
[1763964415150,0.323,87172.0,87164.0,0.01757]
[1763964415350,0.01202,87171.0,87163.0,0.0075]
[1763964417315,0.00011788,87189.0,87170.0,0.01732]
[1763964417515,0.00011788,87189.0,87171.0,0.01732]
[1763964417755,2.0,87188.0,87171.0,0.01732]
[1763964417954,0.32311788,87189.0,87172.0,0.01757]
[1763964418118,0.32311788,87189.0,87188.0,0.01732]
[1763964418322,0.00111788,87189.0,87188.0,0.01732]
[1763964418539,0.00111788,87189.0,87172.0,0.01757]
[1763964418774,0.32411788,87189.0,87172.0,0.01757]
[1763964419330,0.32411788,87189.0,87173.0,0.02294288]
[1763964419546,0.00077349,87188.0,87173.0,0.03973939]
[1763964420108,0.00077349,87188.0,87164.0,0.02217176]
[1763964420314,0.00077349,87188.0,87174.0,0.01757]
[1763964420516,0.32311788,87189.0,87174.0,0.01757]
[1763964420725,0.32311788,87189.0,87163.0,0.0075]
[1763964420726,0.00011788,87189.0,87175.0,0.02294235]
[1763964420927,0.00011788,87189.0,87163.0,0.0075]
[1763964420928,0.86962807,87184.0,87163.0,0.0075]
[1763964421136,0.0247,87188.0,87163.0,0.0075]
[1763964421137,0.323,87172.0,87163.0,0.0075]
[1763964421283,0.323,87172.0,87164.0,0.0166]
[1763964421482,0.323,87172.0,87171.0,0.0166]
[1763964421682,0.323,87172.0,87164.0,0.0166]
[1763964421683,0.323,87172.0,87163.0,0.0075]
[1763964421991,0.323,87172.0,87158.0,0.00653]
[1763964422569,0.323,87167.0,87158.0,0.00653]
[1763964422776,0.323,87167.0,87158.0,0.00652971]
[1763964423158,0.323,87167.0,87131.0,0.10905125]
[1763964423331,0.323,87159.0,87157.0,0.00653]
[1763964423535,0.323,87169.0,87157.0,0.00653]
[1763964423744,0.43205125,87169.0,87157.0,0.00653]
[1763964424147,0.323,87169.0,87168.0,0.01627]
[1763964424366,0.323,87169.0,87158.0,0.0166]
[1763964424598,0.323,87167.0,87157.0,0.00653]
[1763964425260,0.323,87167.0,87166.0,0.01627]
[1763964425458,0.001,87167.0,87166.0,0.01627]
[1763964425643,0.00011784,87169.0,87166.0,0.01627]
[1763964426089,0.00011784,87169.0,87157.0,0.00653]
[1763964426090,0.00011784,87169.0,87168.0,0.01627]
[1763964426495,0.00011784,87169.0,87157.0,0.00653]
[1763964426496,0.00011784,87169.0,87157.0,0.02313]
[1763964427055,0.00011784,87169.0,87168.0,0.01627]
[1763964427536,0.00011784,87169.0,87168.0,0.03287]
[1763964428227,0.00011784,87169.0,87168.0,0.01627]
[1763964428714,0.00011784,87169.0,87162.0,0.0166]
[1763964428892,0.00011784,87169.0,87168.0,0.01627]
[1763964429096,0.00011784,87169.0,87168.0,0.01727]
[1763964429267,0.00011784,87169.0,87168.0,0.05781419]
[1763964429498,0.00011784,87169.0,87168.0,0.03387]
[1763964429697,0.00011784,87169.0,87168.0,0.05681419]
[1763964430116,0.00011784,87169.0,87168.0,0.05581419]
[1763964430521,0.00011784,87169.0,87168.0,0.05681419]
[1763964430721,0.00011784,87169.0,87168.0,0.06679419]
[1763964430920,0.00011784,87169.0,87168.0,0.06579419]
[1763964431121,0.00011784,87169.0,87168.0,2.06579419]
[1763964431325,0.00011784,87169.0,87168.0,2.36685]
[1763964431707,0.00290038,87218.0,87201.0,0.01146775]
[1763964431890,0.00290038,87218.0,87200.0,0.01146788]
[1763964431891,0.00329333,87218.0,87217.0,0.13539125]
[1763964432025,0.00329333,87218.0,87217.0,0.04294]
[1763964433132,0.00329333,87218.0,87217.0,0.02634]
[1763964433333,0.00329333,87218.0,87217.0,0.02734]
[1763964433536,0.00329333,87218.0,87217.0,0.001]
[1763964434196,0.00329333,87218.0,87217.0,0.01727]
[1763964434396,0.00329333,87218.0,87217.0,0.002]
[1763964434610,0.00329333,87218.0,87217.0,0.001]
[1763964434848,0.00329333,87218.0,87209.0,0.02667]
[1763964435197,0.00329333,87218.0,87217.0,0.01627]
[1763964435198,0.32629333,87218.0,87217.0,0.01627]
[1763964435702,0.32629333,87218.0,87217.0,0.03287]
[1763964435897,0.32629333,87218.0,87209.0,0.01007]
[1763964436097,0.32629333,87218.0,87217.0,0.01627]
[1763964436326,0.00329333,87218.0,87217.0,0.01627]
[1763964436696,0.00329333,87218.0,87217.0,0.03287]
[1763964437083,0.0004,87240.0,87217.0,0.03287]
[1763964437228,0.00051783,87240.0,87239.0,0.01655]
[1763964437732,0.00120817,87240.0,87239.0,0.02986]
[1763964438284,0.00120817,87240.0,87239.0,0.01655]
[1763964438454,0.00120817,87240.0,87239.0,0.01755]
[1763964439050,0.00120817,87240.0,87239.0,0.03086]
[1763964439665,0.00120817,87240.0,87239.0,0.03186]
[1763964444274,0.00120817,87240.0,87239.0,0.01855]
[1763964444498,0.00120817,87240.0,87239.0,0.03186]
[1763964445704,0.61038464,87260.0,87239.0,0.01855]
[1763964445889,0.59400427,87250.0,87242.0,0.10905125]
[1763964446095,0.59400427,87250.0,87243.0,0.01331]
[1763964446297,0.59400427,87250.0,87249.0,0.01331]
[1763964447037,0.59400427,87250.0,87249.0,0.02662]
[1763964447242,0.59400427,87259.0,87239.0,0.00324]
[1763964447375,0.00077349,87258.0,87249.0,0.01331]
[1763964447561,0.323,87258.0,87249.0,0.01331]
[1763964447964,0.59400427,87259.0,87257.0,0.01331]
[1763964448211,0.01638037,87260.0,87258.0,0.01331]
[1763964448405,0.01638037,87260.0,87250.0,0.01331]
[1763964448406,2.0,87305.0,87259.0,0.12236125]
[1763964448662,0.59400427,87280.0,87266.0,0.01291]
[1763964449075,0.59400427,87280.0,87279.0,0.02258]
[1763964449348,0.59400427,87290.0,87279.0,0.02258]
[1763964449501,0.32377349,87289.0,87279.0,0.02258]
[1763964449704,0.00077349,87288.0,87280.0,0.01291]
[1763964450291,0.59400427,87300.0,87287.0,0.01291]
[1763964450492,0.00077349,87299.0,87288.0,0.01291]
[1763964450827,0.32377349,87299.0,87288.0,0.01291]
[1763964451044,0.10905125,87298.0,87279.0,0.00967]
[1763964451192,0.323,87289.0,87279.0,0.00967]
[1763964452290,0.91700427,87289.0,87288.0,0.01425]
[1763964452496,0.323,87297.0,87288.0,0.01425]
[1763964452698,0.00153652,87289.0,87279.0,0.02392]
[1763964452896,0.323,87288.0,87279.0,0.00967]
[1763964453074,0.00125443,87280.0,87279.0,0.00967]
[1763964453445,0.00125443,87280.0,87279.0,0.02392]
[1763964454454,0.00125443,87280.0,87279.0,0.02492]
[1763964454652,0.00125443,87280.0,87279.0,0.03817]
[1763964455051,0.00125443,87280.0,87279.0,0.03917]
[1763964455483,0.00125443,87280.0,87279.0,0.03817]
[1763964457270,0.00125443,87280.0,87279.0,0.03917]
[1763964458016,0.00125443,87280.0,87279.0,0.04017]
[1763964459012,0.00125443,87280.0,87279.0,0.03917]
[1763964459558,0.00125443,87280.0,87279.0,0.06208501]
[1763964459872,0.00125443,87280.0,87279.0,0.06408501]